fUST/lending_fUST_20250801
["ID","MTS","AMOUNT","RATE_DAILY","PERIOD"]
[376545699,1754015359442,-460.0,0.00020931,2]
[376545700,1754015359465,-1619.91,0.00020931,2]
[376545701,1754015359488,-460.0,0.00020931,2]
[376545702,1754015359508,-463.74257834,0.00020931,2]
[376545703,1754015359529,-85.52660004,0.00020932,2]
[376545704,1754015359554,-460.0,0.00020932,2]
[376545705,1754015359576,-460.0,0.00020932,2]
[376545706,1754015359600,-460.0,0.00020932,2]
[376545707,1754015359628,-500.0,0.00020932,2]
[376545708,1754015359649,-500.0,0.00020932,2]
[376545709,1754015359670,-463.65414665,0.00020932,2]
[376545710,1754015359690,-460.0,0.00020932,2]
[376545711,1754015359711,-460.0,0.00020932,2]
[376545712,1754015359730,-460.0,0.00020932,2]
[376545713,1754015359751,-460.0,0.00020932,2]
[376545714,1754015359772,-460.0,0.00020932,2]
[376545715,1754015359792,-460.0,0.00020932,2]
[376545716,1754015359813,-460.0,0.00020932,2]
[376545717,1754015359838,-460.0,0.00020932,2]
[376545718,1754015359866,-471.72734062,0.00020932,2]
[376545719,1754015359891,-460.0,0.00020932,2]
[376545720,1754015359915,-546.38546449,0.00020932,2]
[376545721,1754015359936,-506.89332545,0.00020932,2]
[376545722,1754015359958,-460.0,0.00020932,2]
[376545723,1754015359980,-460.0,0.00020932,2]
[376545724,1754015360003,-393.37116688,0.00020932,2]
[376545725,1754015360306,-66.62883312,0.00020932,2]
[376545726,1754015360327,-460.0,0.00020932,2]
[376545727,1754015360348,-422.92284331,0.00020932,2]
[376545728,1754015360370,-480.17,0.00020932,2]
[376545729,1754015360391,-460.0,0.00020932,2]
[376545730,1754015360411,-460.0,0.00020932,2]
[376545731,1754015360432,-460.0,0.00020932,2]
[376545732,1754015360453,-460.0,0.00020932,2]
[376545733,1754015360473,-466.90081081,0.00020932,2]
[376545734,1754015360497,-1138.32,0.00020932,2]
[376545735,1754015360518,-460.0,0.00020932,2]
[376545736,1754015360539,-460.0,0.00020932,2]
[376545737,1754015360563,-559.22,0.00020932,2]
[376545738,1754015360584,-470.86696811,0.00020932,2]
[376545739,1754015360606,-460.0,0.00020932,2]
[376545740,1754015360628,-474.41866707,0.00020932,2]
[376545741,1754015360651,-460.0,0.00020932,2]
[376545742,1754015360674,-460.0,0.00020932,2]
[376545743,1754015360694,-460.0,0.00020932,2]
[376545744,1754015360716,-629.88,0.00020932,2]
[376545745,1754015360736,-466.94650628,0.00020932,2]
[376545746,1754015360757,-460.0,0.00020932,2]
[376545747,1754015360777,-576.41110111,0.00020932,2]
[376545748,1754015360798,-460.0,0.00020932,2]
[376545749,1754015360819,-460.0,0.00020932,2]
[376545750,1754015360839,-460.0,0.00020932,2]
[376545751,1754015360862,-460.0,0.00020932,2]
[376545752,1754015360882,-467.42096561,0.00020932,2]
[376545753,1754015360903,-460.0,0.00020932,2]
[376545754,1754015360926,-460.0,0.00020932,2]
[376545755,1754015360951,-3043.61,0.00020932,2]
[376545756,1754015360972,-460.0,0.00020932,2]
[376545757,1754015360992,-460.0,0.00020932,2]
[376545758,1754015361014,-460.0,0.00020932,2]
[376545759,1754015361036,-460.0,0.00020932,2]
[376545760,1754015361057,-460.0,0.00020932,2]
[376545761,1754015361080,-460.0,0.00020932,2]
[376545762,1754015361100,-460.0,0.00020932,2]
[376545763,1754015361121,-460.0,0.00020932,2]
[376545764,1754015361145,-460.0,0.00020932,2]
[376545765,1754015361166,-468.64089191,0.00020932,2]
[376545766,1754015361186,-460.0,0.00020932,2]
[376545767,1754015361207,-460.0,0.00020932,2]
[376545768,1754015361227,-420.34097992,0.00020932,2]
[376545769,1754015361249,-460.0,0.00020932,2]
[376545770,1754015361271,-460.0,0.00020932,2]
[376545771,1754015361291,-209.89,0.00020932,2]
[376545772,1754015361311,-466.09411442,0.00020933,2]
[376545773,1754015361332,-460.0,0.00020933,2]
[376545774,1754015361353,-460.0,0.00020933,2]
[376545775,1754015361375,-462.71621824,0.00020933,2]
[376545776,1754015361396,-460.0,0.00020933,2]
[376545777,1754015361416,-460.0,0.00020933,2]
[376545778,1754015361436,-464.67261639,0.00020933,2]
[376545779,1754015361457,-460.0,0.00020933,2]
[376545780,1754015361478,-631.56,0.00020933,2]
[376545781,1754015361499,-509.71,0.00020933,2]
[376545782,1754015361519,-460.0,0.00020933,2]
[376545783,1754015361540,-460.0,0.00020933,2]
[376545784,1754015361565,-389.70941685,0.00020933,2]
[376545785,1754015361587,-460.0,0.00020933,2]
[376545786,1754015361606,-462.96676887,0.00020933,2]
[376545787,1754015361627,-460.0,0.00020933,2]
[376545788,1754015361648,-460.81455457,0.00020933,2]
[376545789,1754015361669,-460.0,0.00020933,2]
[376545790,1754015361690,-850.17,0.00020933,2]
[376545791,1754015361713,-460.0,0.00020933,2]
[376545792,1754015361733,-460.0,0.00020933,2]
[376545793,1754015361753,-460.0,0.00020933,2]
[376545794,1754015361774,-460.0,0.00020933,2]
[376545795,1754015361794,-460.0,0.00020933,2]
[376545796,1754015361815,-460.0,0.00020933,2]
[376545797,1754015361835,-460.0,0.00020933,2]
[376545798,1754015361856,-460.0,0.00020933,2]
[376545799,1754015361877,-465.58510339,0.00020933,2]
[376545800,1754015361897,-460.0,0.00020933,2]
[376545801,1754015361918,-460.0,0.00020933,2]
[376545802,1754015361940,-460.0,0.00020933,2]
[376545803,1754015362076,-460.0,0.00020933,2]
[376545804,1754015362098,-460.0,0.00020933,2]
[376545805,1754015362125,-460.0,0.00020933,2]
[376545806,1754015362146,-460.0,0.00020933,2]
[376545807,1754015362167,-460.0,0.00020933,2]
[376545808,1754015362191,-217.09697227,0.00020933,2]
[376545809,1754015362213,-460.0,0.00020933,2]
[376545810,1754015362235,-460.0,0.00020933,2]
[376545811,1754015362257,-460.0,0.00020933,2]
[376545812,1754015362278,-973.45,0.00020933,2]
[376545813,1754015362298,-463.69107277,0.00020933,2]
[376545814,1754015362318,-443.45671922,0.00020933,2]
[376545815,1754015362339,-465.0951396,0.00020933,2]
[376545816,1754015362362,-460.0,0.00020933,2]
[376545817,1754015362383,-460.0,0.00020933,2]
[376545818,1754015362404,-460.0,0.00020933,2]
[376545819,1754015362428,-471.67280416,0.00020933,2]
[376545820,1754015362450,-500.0,0.00020933,2]
[376545821,1754015362472,-460.0,0.00020933,2]
[376545822,1754015362492,-460.0,0.00020933,2]
[376545823,1754015362512,-155.82111176,0.00020949,2]
[376545824,1754015362532,-1942.28339133,0.00021,5]
[376545825,1754015362556,-610.0,0.00021007,3]
[376545826,1754015362577,-460.0,0.00021007,2]
[376545827,1754015362598,-944.69,0.00021007,10]
[376545828,1754015362619,-1072.69,0.00021007,10]
[376545829,1754015362641,-893.91,0.00021007,10]
[376545830,1754015362668,-744.92,0.00021007,10]
[376545831,1754015362690,-500.0,0.00021016,2]
[376545832,1754015362715,-517.01413732,0.00021016,2]
[376545833,1754015362749,-168.43049676,0.00021016,2]
[376545834,1754015362774,-281.59146772,0.00021016,2]
[376545835,1754015362796,-469.56237439,0.00021017,2]
[376545836,1754015362818,-460.0,0.00021017,2]
[376545837,1754015362839,-460.0,0.00021017,2]
[376545838,1754015362862,-460.0,0.00021017,2]
[376545839,1754015362883,-460.0,0.00021017,2]
[376545840,1754015362904,-460.0,0.00021017,2]
[376545841,1754015362927,-465.29923072,0.00021017,2]
[376545842,1754015362950,-365.18127998,0.00021017,2]
[376545843,1754015362972,-464.73004642,0.00021017,2]
[376545844,1754015362993,-460.0,0.00021017,2]
[376545845,1754015363016,-460.0,0.00021017,2]
[376545846,1754015363039,-464.93326887,0.00021017,2]
[376545847,1754015363061,-460.0,0.00021017,2]
[376545848,1754015363084,-460.0,0.00021017,2]
[376545849,1754015363107,-460.0,0.00021017,2]
[376545850,1754015363127,-460.0,0.00021017,2]
[376545851,1754015363148,-463.22248033,0.00021017,2]
[376545852,1754015363168,-460.0,0.00021017,2]
[376545853,1754015363191,-460.0,0.00021017,2]
[376545854,1754015363213,-456.57,0.00021017,2]
[376545855,1754015363234,-460.0,0.00021017,2]
[376545856,1754015363257,-460.0,0.00021017,2]
[376545857,1754015363279,-460.0,0.00021017,2]
[376545858,1754015363300,-460.0,0.00021017,2]
[376545859,1754015363322,-460.0,0.00021017,2]
[376545860,1754015363343,-460.0,0.00021017,2]
[376545861,1754015363367,-460.1519486,0.00021017,2]
[376545862,1754015363392,-460.0,0.00021017,2]
[376545863,1754015363415,-460.91612612,0.00021017,2]
[376545864,1754015363438,-460.0,0.00021017,2]
[376545865,1754015363461,-460.0,0.00021017,2]
[376545866,1754015363483,-460.0,0.00021017,2]
[376545867,1754015363504,-460.0,0.00021017,2]
[376545868,1754015363526,-460.0,0.00021017,2]
[376545869,1754015363550,-530.88529812,0.00021017,2]
[376545870,1754015363573,-460.0,0.00021017,2]
[376545871,1754015363595,-460.99086836,0.00021017,2]
[376545872,1754015363619,-463.19143281,0.00021017,2]
[376545873,1754015363643,-460.0,0.00021017,2]
[376545874,1754015363665,-462.49825127,0.00021017,2]
[376545875,1754015363685,-462.92240899,0.00021017,2]
[376545876,1754015363706,-464.09415911,0.00021017,2]
[376545877,1754015363727,-461.85796983,0.00021017,2]
[376545878,1754015363748,-460.0,0.00021017,2]
[376545879,1754015363771,-461.30767199,0.00021017,2]
[376545880,1754015363793,-460.0,0.00021017,2]
[376545881,1754015363816,-460.0,0.00021017,2]
[376545882,1754015363836,-460.0,0.00021017,2]
[376545883,1754015363857,-500.0,0.00021017,2]
[376545884,1754015363884,-461.48780341,0.00021017,2]
[376545885,1754015363905,-460.0,0.00021017,2]
[376545886,1754015363926,-460.0,0.00021017,2]
[376545887,1754015363948,-462.27488565,0.00021017,2]
[376545888,1754015363969,-460.0,0.00021017,2]
[376545889,1754015363995,-461.41873916,0.00021017,2]
[376545890,1754015364016,-460.0,0.00021017,2]
[376545891,1754015364037,-460.0,0.00021017,2]
[376545892,1754015364058,-460.0,0.00021017,2]
[376545893,1754015364080,-460.0,0.00021017,2]
[376545894,1754015364101,-461.22363252,0.00021017,2]
[376545895,1754015364124,-460.0,0.00021017,2]
[376545896,1754015364144,-461.88482665,0.00021017,2]
[376545897,1754015364165,-460.0,0.00021017,2]
[376545898,1754015364185,-465.68132678,0.00021017,2]
[376545899,1754015364207,-460.0,0.00021017,2]
[376545900,1754015364228,-461.58464104,0.00021017,2]
[376545901,1754015364249,-460.0,0.00021017,2]
[376545902,1754015364271,-460.0,0.00021017,2]
[376545903,1754015364291,-460.0,0.00021017,2]
[376545904,1754015364311,-186.23195553,0.00021017,2]
[376545905,1754015364331,-460.0,0.00021017,2]
[376545906,1754015364351,-460.0,0.00021017,2]
[376545907,1754015364374,-466.96837158,0.00021017,2]
[376545908,1754015364395,-460.0,0.00021017,2]
[376545909,1754015364416,-460.0,0.00021017,2]
[376545910,1754015364436,-460.0,0.00021017,2]
[376545911,1754015364457,-460.0,0.00021017,2]
[376545912,1754015364478,-460.8231147,0.00021017,2]
[376545913,1754015364499,-460.0,0.00021017,2]
[376545914,1754015364519,-460.0,0.00021017,2]
[376545915,1754015364539,-236.36303243,0.00021017,2]
[376545916,1754015364563,-460.0,0.00021017,2]
[376545917,1754015364584,-460.0,0.00021017,2]
[376545918,1754015364605,-460.0,0.00021017,2]
[376545919,1754015364629,-460.0,0.00021017,2]
[376545920,1754015364651,-460.0,0.00021017,2]
[376545921,1754015364672,-460.0,0.00021017,2]
[376545922,1754015364815,-464.78923528,0.00021017,2]
[376545923,1754015364835,-464.36885259,0.00021017,2]
[376545924,1754015364856,-465.04192819,0.00021017,2]
[376545925,1754015364877,-461.20871049,0.00021017,2]
[376545926,1754015364899,-461.43542619,0.00021017,2]
[376545927,1754015364919,-460.0,0.00021017,2]
[376545928,1754015364940,-461.14175633,0.00021017,2]
[376545929,1754015364961,-460.0,0.00021017,2]
[376545930,1754015364984,-460.0,0.00021017,2]
[376545931,1754015365006,-460.0,0.00021017,2]
[376545932,1754015365027,-463.74892975,0.00021017,2]
[376545933,1754015365049,-464.42577858,0.00021017,2]
[376545934,1754015365069,-466.39771845,0.00021017,2]
[376545935,1754015365089,-463.78933232,0.00021017,2]
[376545936,1754015365110,-461.87917562,0.00021017,2]
[376545937,1754015365130,-460.0,0.00021017,2]
[376545938,1754015365150,-460.0,0.00021017,2]
[376545939,1754015365170,-460.0,0.00021017,2]
[376545940,1754015365192,-460.4490201,0.00021017,2]
[376545941,1754015365213,-463.3445492,0.00021017,2]
[376545942,1754015365234,-460.0,0.00021017,2]
[376545943,1754015365254,-460.90899544,0.00021017,2]
[376545944,1754015365275,-460.0,0.00021017,2]
[376545945,1754015365297,-433.76475946,0.00021017,2]
[376545946,1754015365318,-463.87699747,0.00021017,2]
[376545947,1754015365338,-463.44298333,0.00021017,2]
[376545948,1754015365359,-460.0,0.00021017,2]
[376545949,1754015365380,-460.0,0.00021017,2]
[376545950,1754015365401,-460.0,0.00021017,2]
[376545951,1754015365421,-460.63620581,0.00021017,2]
[376545952,1754015365441,-498.72012231,0.00021017,2]
[376545953,1754015365462,-460.0,0.00021017,2]
[376545954,1754015365483,-463.71821459,0.00021017,2]
[376545955,1754015365503,-461.39568545,0.00021017,2]
[376545956,1754015365524,-460.0,0.00021017,2]
[376545957,1754015365544,-469.59512893,0.00021017,2]
[376545958,1754015365570,-471.91422666,0.00021017,2]
[376545959,1754015365592,-460.0,0.00021017,2]
[376545960,1754015365613,-468.34359486,0.00021017,2]
[376545961,1754015365634,-463.57625839,0.00021017,2]
[376545962,1754015365655,-462.61477877,0.00021017,2]
[376545963,1754015365675,-460.0,0.00021017,2]
[376545964,1754015365697,-460.0,0.00021017,2]
[376545965,1754015365722,-1517.23,0.00021017,2]
[376545966,1754015365746,-460.0,0.00021017,2]
[376545967,1754015365767,-469.74736921,0.00021017,2]
[376545968,1754015365788,-460.0,0.00021017,2]
[376545969,1754015365809,-460.0,0.00021017,2]
[376545970,1754015365829,-460.0,0.00021017,2]
[376545971,1754015365850,-460.0,0.00021017,2]
[376545972,1754015365873,-469.04878342,0.00021017,2]
[376545973,1754015365894,-465.44090097,0.00021017,2]
[376545974,1754015365914,-460.0,0.00021017,2]
[376545975,1754015365936,-460.0,0.00021017,2]
[376545976,1754015365958,-460.0,0.00021017,2]
[376545977,1754015365981,-708.95,0.00021017,2]
[376545978,1754015366002,-461.81813616,0.00021017,2]
[376545979,1754015366022,-460.0,0.00021017,2]
[376545980,1754015366044,-502.59010775,0.00021017,2]
[376545981,1754015366067,-176.11827439,0.00021017,2]
[376545982,1754015366090,-460.0,0.00021017,2]
[376545983,1754015366110,-467.85886952,0.00021017,2]
[376545984,1754015366132,-460.0,0.00021017,2]
[376545985,1754015366153,-465.14610405,0.00021017,2]
[376545986,1754015366174,-466.88564991,0.00021017,2]
[376545987,1754015366195,-460.0,0.00021017,2]
[376545988,1754015366216,-463.92569531,0.00021017,2]
[376545989,1754015366239,-464.96029258,0.00021017,2]
[376545990,1754015366261,-218.96848008,0.00021017,2]
[376545991,1754015366284,-463.36683235,0.00021017,2]
[376545992,1754015366306,-363.33624991,0.00021017,2]
[376545993,1754015366328,-464.56680716,0.00021017,2]
[376545994,1754015366349,-460.0,0.00021017,2]
[376545995,1754015366372,-467.79410178,0.00021017,2]
[376545996,1754015366394,-466.7054145,0.00021017,2]
[376545997,1754015366414,-463.54868231,0.00021017,2]
[376545998,1754015366437,-174.00711055,0.00021017,2]
[376545999,1754015366459,-464.39447164,0.00021017,2]
[376546000,1754015366480,-460.0,0.00021017,2]
[376546001,1754015366500,-460.0,0.00021017,2]
[376546002,1754015366523,-460.0,0.00021017,2]
[376546003,1754015366543,-460.85875591,0.00021017,2]
[376546004,1754015366567,-465.00296731,0.00021017,2]
[376546005,1754015366587,-460.0,0.00021017,2]
[376546006,1754015366610,-500.94,0.00021017,2]
[376546007,1754015366634,-464.26665719,0.00021017,2]
[376546008,1754015366657,-500.0,0.00021017,2]
[376546009,1754015366676,-308.58603628,0.00021017,2]
[376546010,1754015366696,-460.0,0.00021017,2]
[376546011,1754015366716,-468.98908264,0.00021017,2]
[376546012,1754015366736,-460.0,0.00021017,2]
[376546013,1754015366756,-499.46056494,0.00021017,2]
[376546014,1754015366776,-461.19878474,0.00021017,2]
[376546015,1754015366796,-460.0,0.00021017,2]
[376546016,1754015366818,-460.0,0.00021017,2]
[376546017,1754015366839,-467.6304001,0.00021017,2]
[376546018,1754015366862,-461.1458898,0.00021017,2]
[376546019,1754015366886,-460.0,0.00021017,2]
[376546020,1754015366907,-469.48180914,0.00021018,2]
[376546021,1754015366929,-460.0,0.00021018,2]
[376546022,1754015366951,-460.0,0.00021018,2]
[376546023,1754015366973,-460.0,0.00021018,2]
[376546024,1754015366995,-500.0,0.00021034,2]
[376546025,1754015367015,-500.0,0.00021048,2]
[376546026,1754015367038,-1115.18,0.00021048,2]
[376546027,1754015367061,-789.4,0.00021048,2]
[376546028,1754015367082,-460.0,0.00021048,2]
[376546029,1754015367104,-497.87,0.00021048,2]
[376546030,1754015367127,-546.95266478,0.00021048,2]
[376546031,1754015367147,-460.75423887,0.00021049,2]
[376546032,1754015367167,-460.0,0.00021049,2]
[376546033,1754015367187,-468.48286413,0.00021049,2]
[376546034,1754015367207,-199.57662258,0.00021049,2]
[376546035,1754015367322,-467.58547551,0.00021049,2]
[376546036,1754015367346,-500.0,0.00021049,2]
[376546037,1754015367369,-460.0,0.00021049,2]
[376546038,1754015367388,-460.0,0.00021049,2]
[376546039,1754015367410,-461.86053634,0.00021049,2]
[376546040,1754015367431,-460.0,0.00021049,2]
[376546041,1754015367451,-460.0,0.00021049,2]
[376546042,1754015367471,-460.0,0.00021049,2]
[376546043,1754015367493,-460.0,0.00021049,2]
[376546044,1754015367514,-460.0,0.00021049,2]
[376546045,1754015367535,-460.0,0.00021049,2]
[376546046,1754015367560,-460.23090965,0.00021049,2]
[376546047,1754015367581,-376.48903322,0.00021049,2]
[376546048,1754015367603,-464.97495795,0.00021049,2]
[376546049,1754015367625,-473.1555047,0.00021049,2]
[376546050,1754015367650,-461.83617436,0.00021049,2]
[376546051,1754015367670,-460.0,0.00021049,2]
[376546052,1754015367691,-460.0,0.00021049,2]
[376546053,1754015367711,-461.91606788,0.00021049,2]
[376546054,1754015367732,-460.0,0.00021049,2]
[376546055,1754015367753,-460.0,0.00021049,2]
[376546056,1754015367775,-465.6972786,0.00021049,2]
[376546057,1754015367796,-462.06880331,0.00021049,2]
[376546058,1754015367818,-462.05032921,0.00021049,2]
[376546059,1754015367839,-460.0,0.00021049,2]
[376546060,1754015367861,-460.0,0.00021049,2]
[376546061,1754015367882,-466.88486692,0.00021049,2]
[376546062,1754015367903,-462.66936958,0.00021049,2]
[376546063,1754015367926,-460.0,0.00021049,2]
[376546064,1754015367945,-460.88617164,0.00021049,2]
[376546065,1754015367965,-460.0,0.00021049,2]
[376546066,1754015367986,-465.72514063,0.00021049,2]
[376546067,1754015368006,-460.0,0.00021049,2]
[376546068,1754015368026,-460.0,0.00021049,2]
[376546069,1754015368047,-460.0,0.00021049,2]
[376546070,1754015368067,-460.0,0.00021049,2]
[376546071,1754015368088,-463.7180736,0.00021049,2]
[376546072,1754015368107,-460.0,0.00021049,2]
[376546073,1754015368128,-460.0,0.00021049,2]
[376546074,1754015368148,-464.02397835,0.00021049,2]
[376546075,1754015368172,-460.0,0.00021049,2]
[376546076,1754015368192,-198.11796617,0.00021049,2]
[376546077,1754015368212,-462.48649848,0.00021049,2]
[376546078,1754015368233,-460.0,0.00021049,2]
[376546079,1754015368255,-460.0,0.00021049,2]
[376546080,1754015368276,-462.22609931,0.00021049,2]
[376546081,1754015368297,-460.0,0.00021049,2]
[376546082,1754015368317,-460.0,0.00021049,2]
[376546083,1754015368337,-460.0,0.00021049,2]
[376546084,1754015368358,-460.0,0.00021049,2]
[376546085,1754015368380,-460.0,0.00021049,2]
[376546086,1754015368404,-4250.58,0.00021059,2]
[376546087,1754015368426,-782.91,0.00021059,2]
[376546088,1754015368448,-1133.72,0.00021059,2]
[376546089,1754015368468,-500.0,0.00021073,2]
[376546090,1754015368489,-500.0,0.00021073,2]
[376546091,1754015368509,-411.94,0.000211,2]
[376546092,1754015368530,-267.4,0.00021159,3]
[376546093,1754015368553,-460.0,0.00021204,2]
[376546094,1754015368575,-460.0,0.00021204,2]
[376546095,1754015368599,-1269.65,0.00021204,2]
[376546096,1754015368625,-1888.87,0.00021205,2]
[376546097,1754015368651,-460.0,0.00021205,2]
[376546098,1754015368674,-1582.61,0.00021205,2]
[376546099,1754015368696,-460.0,0.00021205,2]
[376546100,1754015368718,-1619.91,0.00021205,2]
[376546101,1754015368740,-460.0,0.00021205,2]
[376546102,1754015368761,-466.65316341,0.00021206,2]
[376546103,1754015368781,-467.46205462,0.00021206,2]
[376546104,1754015368801,-500.0,0.00021206,2]
[376546105,1754015368822,-460.0,0.00021206,2]
[376546106,1754015368843,-460.0,0.00021206,2]
[376546107,1754015368863,-478.06352349,0.00021206,2]
[376546108,1754015368884,-460.0,0.00021206,2]
[376546109,1754015368904,-460.0,0.00021206,2]
[376546110,1754015368925,-460.0,0.00021206,2]
[376546111,1754015368946,-460.0,0.00021206,2]
[376546112,1754015368966,-468.73505064,0.00021206,2]
[376546113,1754015368988,-460.0,0.00021206,2]
[376546114,1754015369010,-460.0,0.00021206,2]
[376546115,1754015369032,-261.51419299,0.00021206,2]
[376546116,1754015369053,-460.0,0.00021206,2]
[376546117,1754015369076,-460.0,0.00021206,2]
[376546118,1754015369096,-460.0,0.00021206,2]
[376546119,1754015369120,-480.17,0.00021206,2]
[376546120,1754015369141,-460.0,0.00021206,2]
[376546121,1754015369161,-460.0,0.00021206,2]
[376546122,1754015369180,-460.0,0.00021206,2]
[376546123,1754015369201,-460.0,0.00021206,2]
[376546124,1754015369224,-1138.32,0.00021206,2]
[376546125,1754015369243,-460.0,0.00021206,2]
[376546126,1754015369265,-559.22,0.00021206,2]
[376546127,1754015369284,-460.0,0.00021206,2]
[376546128,1754015369305,-460.0,0.00021206,2]
[376546129,1754015369326,-460.0,0.00021206,2]
[376546130,1754015369348,-629.88,0.00021206,2]
[376546131,1754015369370,-460.0,0.00021206,2]
[376546132,1754015369392,-460.0,0.00021206,2]
[376546133,1754015369414,-460.0,0.00021206,2]
[376546134,1754015369435,-460.0,0.00021206,2]
[376546135,1754015369456,-466.62179352,0.00021206,2]
[376546136,1754015369482,-3043.61,0.00021206,2]
[376546137,1754015369503,-466.11880754,0.00021206,2]
[376546138,1754015369524,-463.92474304,0.00021206,2]
[376546139,1754015369545,-460.0,0.00021206,2]
[376546140,1754015369570,-468.95151815,0.00021206,2]
[376546141,1754015369593,-460.0,0.00021206,2]
[376546142,1754015369615,-460.0,0.00021206,2]
[376546143,1754015369638,-460.0,0.00021206,2]
[376546144,1754015369750,-466.16479031,0.00021206,2]
[376546145,1754015369778,-460.0,0.00021206,2]
[376546146,1754015369801,-460.0,0.00021206,2]
[376546147,1754015369823,-460.0,0.00021207,2]
[376546148,1754015369845,-460.0,0.00021207,2]
[376546149,1754015369872,-460.0,0.00021207,2]
[376546150,1754015369892,-460.0,0.00021207,2]
[376546151,1754015369913,-631.56,0.00021207,2]
[376546152,1754015369934,-509.71,0.00021207,2]
[376546153,1754015369955,-460.0,0.00021207,2]
[376546154,1754015369976,-460.0,0.00021207,2]
[376546155,1754015369997,-462.95913713,0.00021207,2]
[376546156,1754015370018,-460.0,0.00021207,2]
[376546157,1754015370039,-850.17,0.00021207,2]
[376546158,1754015370060,-460.0,0.00021207,2]
[376546159,1754015370080,-460.0,0.00021207,2]
[376546160,1754015370100,-460.0,0.00021207,2]
[376546161,1754015370122,-460.0,0.00021207,2]
[376546162,1754015370143,-460.0,0.00021207,2]
[376546163,1754015370164,-460.0,0.00021207,2]
[376546164,1754015370186,-460.0,0.00021207,2]
[376546165,1754015370206,-460.0,0.00021207,2]
[376546166,1754015370227,-164.98049452,0.00021207,2]
[376546167,1754015370248,-460.0,0.00021207,2]
[376546168,1754015370269,-460.0,0.00021207,2]
[376546169,1754015370290,-213.61178588,0.00021207,2]
[376546170,1754015370311,-460.0,0.00021207,2]
[376546171,1754015370333,-468.55259976,0.00021207,2]
[376546172,1754015370354,-460.0,0.00021207,2]
[376546173,1754015370376,-973.45,0.00021207,2]
[376546174,1754015370398,-460.0,0.00021207,2]
[376546175,1754015370419,-460.0,0.00021207,2]
[376546176,1754015370440,-5245.85203782,0.00021233,2]
[376546177,1754015370783,-507.50114449,0.00021017,2]
[376546178,1754015370803,-2054.19598032,0.00021233,2]
[376546179,1754015370824,-500.0,0.00021273,2]
[376546180,1754015370845,-150.0,0.00021273,2]
[376546181,1754015370866,-500.0,0.00021273,2]
[376546182,1754015370887,-460.0,0.00021281,2]
[376546183,1754015370907,-476.99346766,0.00021291,2]
[376546184,1754015370929,-460.0,0.00021291,2]
[376546185,1754015370952,-460.0,0.00021291,2]
[376546186,1754015370972,-470.33665967,0.00021291,2]
[376546187,1754015370992,-460.0,0.00021291,2]
[376546188,1754015371012,-607.25536873,0.00021291,2]
[376546189,1754015371032,-471.39278254,0.00021291,2]
[376546190,1754015371053,-602.90907265,0.00021291,2]
[376546191,1754015371087,-469.90531105,0.00021291,2]
[376546192,1754015371117,-242.1406088,0.00021291,2]
[376546193,1754015371137,-460.0,0.00021291,2]
[376546194,1754015371160,-468.64419244,0.00021291,2]
[376546195,1754015371180,-463.69649941,0.00021291,2]
[376546196,1754015371199,-461.91875831,0.00021291,2]
[376546197,1754015371223,-505.64891094,0.00021291,2]
[376546198,1754015371246,-467.41903618,0.00021291,2]